[Event "Titled Tuesday Blitz April 11 Late 2023"]
[White "Baskakov, Egor"]
[Black "Anand, Nadar"]
[WhiteFideId "24197866"]
[BlackFideId "25009141"]
[WhiteElo "2212"]
[BlackElo "2247"]
[Result "1-0"]
[Round "05"]
[TimeControl "180+2"]
[Date "2023.04.11"]
[WhiteClock "0:01:16"]
[BlackClock "0:00:06"]

1. e4 {[%clk 0:03:00]}  c6 {[%clk 0:02:57]} 2. d4 {[%clk 0:03:00]}  d5 {[%clk 0:02:57]} 3. e5 {[%clk 0:03:00]}  Bf5 {[%clk 0:02:57]} 4. Ne2 {[%clk 0:03:01]}  e6 {[%clk 0:02:51]} 5. Ng3 {[%clk 0:03:01]}  Ne7 {[%clk 0:02:49]} 6. Nxf5 {[%clk 0:02:56]}  Nxf5 {[%clk 0:02:50]} 7. c3 {[%clk 0:02:57]}  Nd7 {[%clk 0:02:50]} 8. Bd3 {[%clk 0:02:57]}  Qc7 {[%clk 0:02:37]} 9. O-O {[%clk 0:02:53]}  Be7 {[%clk 0:02:36]} 10. Bf4 {[%clk 0:02:50]}  O-O {[%clk 0:02:29]} 11. Nd2 {[%clk 0:02:41]}  Rfd8 {[%clk 0:02:17]} 12. Qg4 {[%clk 0:02:37]}  g6 {[%clk 0:02:17]} 13. Nf3 {[%clk 0:02:35]}  Nf8 {[%clk 0:02:07]} 14. Qh3 {[%clk 0:02:26]}  c5 {[%clk 0:02:01]} 15. g4 {[%clk 0:02:25]}  Ng7 {[%clk 0:02:01]} 16. Rac1 {[%clk 0:02:22]}  Rdc8 {[%clk 0:01:52]} 17. Qg3 {[%clk 0:02:14]}  Qb6 {[%clk 0:01:43]} 18. b3 {[%clk 0:02:08]}  cxd4 {[%clk 0:01:41]} 19. cxd4 {[%clk 0:02:09]}  Qa5 {[%clk 0:01:41]} 20. Bb1 {[%clk 0:01:58]}  Ba3 {[%clk 0:01:33]} 21. Rxc8 {[%clk 0:01:55]}  Rxc8 {[%clk 0:01:34]} 22. h4 {[%clk 0:01:55]}  h5 {[%clk 0:01:30]} 23. Bg5 {[%clk 0:01:49]}  hxg4 {[%clk 0:01:23]} 24. Qxg4 {[%clk 0:01:50]}  Nh7 {[%clk 0:01:23]} 25. Be3 {[%clk 0:01:48]}  Qb5 {[%clk 0:00:50]} 26. Ng5 {[%clk 0:01:37]}  Nxg5 {[%clk 0:00:44]} 27. Bxg5 {[%clk 0:01:38]}  Bf8 {[%clk 0:00:26]} 28. h5 {[%clk 0:01:32]}  gxh5 {[%clk 0:00:11]} 29. Qf3 {[%clk 0:01:19]}  Qd7 {[%clk 0:00:06]} 30. Bf6 {[%clk 0:01:19]}  Nf5 {[%clk 0:00:05]} 31. Bxf5 {[%clk 0:01:16]}  exf5 {[%clk 0:00:06]} 32. Qxh5 {[%clk 0:01:16]} 1-0


[Site "https://www.chess.com"]

[Event "Titled Tuesday Blitz April 11 Late 2023"]
[White "Mammadov, Zaur"]
[Black "Chos, Alexey"]
[WhiteFideId "13401033"]
[BlackFideId "14117762"]
[WhiteElo "2441"]
[BlackElo "2234"]
[Result "1-0"]
[Round "05"]
[TimeControl "180+2"]
[Date "2023.04.11"]
[WhiteClock "0:01:05"]
[BlackClock "0:00:47"]

1. e4 {[%clk 0:03:00]}  c6 {[%clk 0:02:54]} 2. c4 {[%clk 0:03:00]}  d5 {[%clk 0:02:50]} 3. cxd5 {[%clk 0:03:01]}  cxd5 {[%clk 0:02:51]} 4. exd5 {[%clk 0:03:02]}  Qxd5 {[%clk 0:02:52]} 5. Nc3 {[%clk 0:03:02]}  Qd8 {[%clk 0:02:51]} 6. d4 {[%clk 0:03:03]}  Nf6 {[%clk 0:02:50]} 7. Nf3 {[%clk 0:03:03]}  g6 {[%clk 0:02:50]} 8. Bc4 {[%clk 0:03:01]}  Bg7 {[%clk 0:02:50]} 9. O-O {[%clk 0:03:00]}  O-O {[%clk 0:02:50]} 10. d5 {[%clk 0:03:00]}  Nbd7 {[%clk 0:02:49]} 11. Re1 {[%clk 0:02:59]}  Nb6 {[%clk 0:02:49]} 12. Bb3 {[%clk 0:03:00]}  Bg4 {[%clk 0:02:48]} 13. h3 {[%clk 0:02:59]}  Bxf3 {[%clk 0:02:48]} 14. Qxf3 {[%clk 0:03:00]}  Rc8 {[%clk 0:02:48]} 15. Bg5 {[%clk 0:02:54]}  h6 {[%clk 0:02:47]} 16. Bh4 {[%clk 0:02:54]}  Nc4 {[%clk 0:02:45]} 17. Qe2 {[%clk 0:02:53]}  Nd6 {[%clk 0:02:33]} 18. Qxe7 {[%clk 0:02:49]}  Nf5 {[%clk 0:02:16]} 19. Qb4 {[%clk 0:02:24]}  a5 {[%clk 0:02:09]} 20. Qf4 {[%clk 0:02:20]}  Nxh4 {[%clk 0:02:00]} 21. Qxh4 {[%clk 0:02:19]}  Qd6 {[%clk 0:01:55]} 22. Rad1 {[%clk 0:02:13]}  Rfd8 {[%clk 0:01:50]} 23. Nb5 {[%clk 0:02:08]}  Qb6 {[%clk 0:01:46]} 24. a4 {[%clk 0:02:03]}  g5 {[%clk 0:01:46]} 25. Qg3 {[%clk 0:01:55]}  Nh5 {[%clk 0:01:38]} 26. Qf3 {[%clk 0:01:53]}  Nf4 {[%clk 0:01:36]} 27. g3 {[%clk 0:01:42]}  Ng6 {[%clk 0:01:31]} 28. d6 {[%clk 0:01:39]}  Rf8 {[%clk 0:01:30]} 29. Re7 {[%clk 0:01:32]}  Qc6 {[%clk 0:01:19]} 30. Bd5 {[%clk 0:01:27]}  Nxe7 {[%clk 0:01:17]} 31. dxe7 {[%clk 0:01:24]}  Qd7 {[%clk 0:01:12]} 32. exf8=Q+ {[%clk 0:01:20]}  Rxf8 {[%clk 0:01:13]} 33. Bxb7 {[%clk 0:01:18]}  Qxh3 {[%clk 0:01:09]} 34. Bd5 {[%clk 0:01:18]}  Bxb2 {[%clk 0:01:07]} 35. Nd6 {[%clk 0:01:16]}  Kg7 {[%clk 0:01:05]} 36. Nf5+ {[%clk 0:01:15]}  Kh8 {[%clk 0:01:04]} 37. Bc4 {[%clk 0:01:09]}  Bf6 {[%clk 0:00:48]} 38. Bf1 {[%clk 0:01:06]}  g4 {[%clk 0:00:47]} 39. Qc6 {[%clk 0:01:05]} 1-0


[Site "https://www.chess.com"]

[Event "Titled Tuesday Blitz April 11 Late 2023"]
[White "Hasangatin, Ramil"]
[Black "Dilmukhametov, Artur"]
[WhiteFideId "4122160"]
[BlackFideId "24179922"]
[WhiteElo "2275"]
[BlackElo "2199"]
[Result "1-0"]
[Round "05"]
[TimeControl "180+2"]
[Date "2023.04.11"]
[WhiteClock "0:00:05"]
[BlackClock "0:00:03"]

1. e4 {[%clk 0:03:00]}  e5 {[%clk 0:02:19]} 2. Nf3 {[%clk 0:03:00]}  Nf6 {[%clk 0:02:19]} 3. d3 {[%clk 0:02:57]}  Nc6 {[%clk 0:02:18]} 4. c3 {[%clk 0:02:56]}  d5 {[%clk 0:02:18]} 5. Nbd2 {[%clk 0:02:56]}  Be6 {[%clk 0:02:16]} 6. Be2 {[%clk 0:02:56]}  Be7 {[%clk 0:02:13]} 7. O-O {[%clk 0:02:55]}  O-O {[%clk 0:02:12]} 8. b4 {[%clk 0:02:56]}  a6 {[%clk 0:02:12]} 9. a3 {[%clk 0:02:56]}  b5 {[%clk 0:02:10]} 10. Bb2 {[%clk 0:02:55]}  d4 {[%clk 0:02:10]} 11. cxd4 {[%clk 0:02:51]}  Nxd4 {[%clk 0:02:07]} 12. Nxe5 {[%clk 0:02:48]}  Nxe2+ {[%clk 0:02:07]} 13. Qxe2 {[%clk 0:02:47]}  Bd6 {[%clk 0:01:59]} 14. d4 {[%clk 0:02:43]}  Bxe5 {[%clk 0:01:57]} 15. dxe5 {[%clk 0:02:43]}  Nd7 {[%clk 0:01:51]} 16. f4 {[%clk 0:02:43]}  Nb6 {[%clk 0:01:49]} 17. Rad1 {[%clk 0:02:34]}  Nc4 {[%clk 0:01:39]} 18. Nxc4 {[%clk 0:02:29]}  Bxc4 {[%clk 0:01:40]} 19. Qg4 {[%clk 0:01:48]}  Qe7 {[%clk 0:00:49]} 20. Rd7 {[%clk 0:01:36]}  Qe6 {[%clk 0:00:43]} 21. Qxe6 {[%clk 0:01:27]}  fxe6 {[%clk 0:00:40]} 22. Rf2 {[%clk 0:01:02]}  Rad8 {[%clk 0:00:40]} 23. Rxd8 {[%clk 0:00:55]}  Rxd8 {[%clk 0:00:41]} 24. h3 {[%clk 0:00:55]}  Rd1+ {[%clk 0:00:39]} 25. Kh2 {[%clk 0:00:54]}  Re1 {[%clk 0:00:39]} 26. g4 {[%clk 0:00:25]}  Rxe4 {[%clk 0:00:37]} 27. f5 {[%clk 0:00:24]}  Re2 {[%clk 0:00:34]} 28. Kg3 {[%clk 0:00:20]}  Rxf2 {[%clk 0:00:31]} 29. Kxf2 {[%clk 0:00:21]}  exf5 {[%clk 0:00:28]} 30. gxf5 {[%clk 0:00:21]}  Bd3 {[%clk 0:00:29]} 31. f6 {[%clk 0:00:16]}  gxf6 {[%clk 0:00:29]} 32. exf6 {[%clk 0:00:17]}  Kf7 {[%clk 0:00:29]} 33. Ke3 {[%clk 0:00:17]}  Bf1 {[%clk 0:00:28]} 34. h4 {[%clk 0:00:17]}  Bg2 {[%clk 0:00:28]} 35. Be5 {[%clk 0:00:16]}  Bd5 {[%clk 0:00:22]} 36. Kd4 {[%clk 0:00:16]}  Bc4 {[%clk 0:00:21]} 37. Kc5 {[%clk 0:00:16]}  h5 {[%clk 0:00:21]} 38. a4 {[%clk 0:00:15]}  Bf1 {[%clk 0:00:17]} 39. a5 {[%clk 0:00:15]}  Bh3 {[%clk 0:00:14]} 40. Kc6 {[%clk 0:00:15]}  Ke6 {[%clk 0:00:13]} 41. Kb7 {[%clk 0:00:11]}  c5 {[%clk 0:00:11]} 42. bxc5 {[%clk 0:00:10]}  Bg2+ {[%clk 0:00:11]} 43. Kxa6 {[%clk 0:00:09]}  b4 {[%clk 0:00:07]} 44. Bb2 {[%clk 0:00:08]}  Bd5 {[%clk 0:00:06]} 45. Kb6 {[%clk 0:00:08]}  Kd7 {[%clk 0:00:06]} 46. c6+ {[%clk 0:00:07]}  Kc8 {[%clk 0:00:04]} 47. c7 {[%clk 0:00:06]}  b3 {[%clk 0:00:03]} 48. a6 {[%clk 0:00:06]}  Kd7 {[%clk 0:00:02]} 49. Be5 {[%clk 0:00:06]}  Bf7 {[%clk 0:00:02]} 50. Kc5 {[%clk 0:00:05]}  b2 {[%clk 0:00:01]} 51. Bxb2 {[%clk 0:00:04]}  Kxc7 {[%clk 0:00:02]} 52. Be5+ {[%clk 0:00:03]}  Kc8 {[%clk 0:00:02]} 53. Kd4 {[%clk 0:00:03]}  Kd7 {[%clk 0:00:01]} 54. Ke3 {[%clk 0:00:03]}  Bd5 {[%clk 0:00:01]} 55. Bd4 {[%clk 0:00:03]}  Ke6 {[%clk 0:00:02]} 56. a7 {[%clk 0:00:02]}  Kf7 {[%clk 0:00:02]} 57. Kf4 {[%clk 0:00:03]}  Kg6 {[%clk 0:00:03]} 58. Ke5 {[%clk 0:00:03]}  Ba8 {[%clk 0:00:03]} 59. Kd6 {[%clk 0:00:03]}  Bf3 {[%clk 0:00:03]} 60. Ke7 {[%clk 0:00:03]}  Bd5 {[%clk 0:00:04]} 61. f7 {[%clk 0:00:03]}  Bxf7 {[%clk 0:00:03]} 62. a8=Q {[%clk 0:00:03]}  Kh6 {[%clk 0:00:04]} 63. Qc6+ {[%clk 0:00:03]}  Kh7 {[%clk 0:00:04]} 64. Qf6 {[%clk 0:00:03]}  Bg6 {[%clk 0:00:05]} 65. Qg5 {[%clk 0:00:04]}  Bf7 {[%clk 0:00:03]} 66. Kf8 {[%clk 0:00:04]}  Bg6 {[%clk 0:00:03]} 67. Bc3 {[%clk 0:00:05]}  Bf7 {[%clk 0:00:03]} 68. Qg7# {[%clk 0:00:05]} 1-0


[Site "https://www.chess.com"]

[Event "Titled Tuesday Blitz April 11 Late 2023"]
[White "Albuquerque Junior,Wellington S."]
[Black "Sargsyan, Shant"]
[WhiteFideId "2151480"]
[BlackFideId "13306766"]
[WhiteElo "2109"]
[BlackElo "2628"]
[Result "0-1"]
[Round "05"]
[TimeControl "180+2"]
[Date "2023.04.11"]
[WhiteClock "0:00:02"]
[BlackClock "0:01:42"]

1. c4 {[%clk 0:02:58]}  a6 {[%clk 0:02:57]} 2. g3 {[%clk 0:02:51]}  e6 {[%clk 0:02:55]} 3. Bg2 {[%clk 0:02:51]}  d5 {[%clk 0:02:56]} 4. Nf3 {[%clk 0:02:31]}  dxc4 {[%clk 0:02:55]} 5. O-O {[%clk 0:02:30]}  Nf6 {[%clk 0:02:54]} 6. Qc2 {[%clk 0:02:28]}  b5 {[%clk 0:02:51]} 7. b3 {[%clk 0:02:15]}  cxb3 {[%clk 0:02:51]} 8. axb3 {[%clk 0:02:15]}  Bb7 {[%clk 0:02:51]} 9. Bb2 {[%clk 0:02:11]}  Bd6 {[%clk 0:02:51]} 10. d4 {[%clk 0:01:50]}  O-O {[%clk 0:02:50]} 11. Rd1 {[%clk 0:01:48]}  Nbd7 {[%clk 0:02:49]} 12. Ne5 {[%clk 0:01:38]}  Bxg2 {[%clk 0:02:49]} 13. Kxg2 {[%clk 0:01:37]}  Bxe5 {[%clk 0:02:48]} 14. dxe5 {[%clk 0:01:38]}  Nd5 {[%clk 0:02:49]} 15. e4 {[%clk 0:01:25]}  N5b6 {[%clk 0:02:49]} 16. Qc6 {[%clk 0:01:12]}  Qc8 {[%clk 0:02:46]} 17. Nd2 {[%clk 0:01:06]}  Nb8 {[%clk 0:02:45]} 18. Qc5 {[%clk 0:01:05]}  Qb7 {[%clk 0:02:43]} 19. f3 {[%clk 0:00:59]}  N8d7 {[%clk 0:02:43]} 20. Qd4 {[%clk 0:00:32]}  c5 {[%clk 0:02:40]} 21. Qd6 {[%clk 0:00:33]}  Rfc8 {[%clk 0:02:34]} 22. Nf1 {[%clk 0:00:31]}  Nf8 {[%clk 0:02:34]} 23. Ne3 {[%clk 0:00:24]}  h6 {[%clk 0:02:34]} 24. h4 {[%clk 0:00:17]}  c4 {[%clk 0:02:27]} 25. Qb4 {[%clk 0:00:07]}  cxb3 {[%clk 0:02:25]} 26. Qxb3 {[%clk 0:00:08]}  Nc4 {[%clk 0:02:23]} 27. Bd4 {[%clk 0:00:08]}  Nxe3+ {[%clk 0:02:22]} 28. Bxe3 {[%clk 0:00:09]}  a5 {[%clk 0:02:20]} 29. Rd6 {[%clk 0:00:08]}  a4 {[%clk 0:02:19]} 30. Qb4 {[%clk 0:00:08]}  Rc4 {[%clk 0:02:19]} 31. Qd2 {[%clk 0:00:07]}  Qc7 {[%clk 0:02:14]} 32. Kh3 {[%clk 0:00:07]}  b4 {[%clk 0:02:09]} 33. Rd4 {[%clk 0:00:05]}  b3 {[%clk 0:02:08]} 34. Rxc4 {[%clk 0:00:05]}  Qxc4 {[%clk 0:02:09]} 35. Rc1 {[%clk 0:00:05]}  Qa6 {[%clk 0:02:08]} 36. Bxh6 {[%clk 0:00:04]}  b2 {[%clk 0:01:52]} 37. Qg5 {[%clk 0:00:03]}  Ng6 {[%clk 0:01:50]} 38. Rc7 {[%clk 0:00:02]}  b1=Q {[%clk 0:01:42]} 0-1


[Site "https://www.chess.com"]

[Event "Titled Tuesday Blitz April 11 Late 2023"]
[White "Dobrikov, Marco"]
[Black "Sadhwani, Raunak"]
[WhiteFideId "12950378"]
[BlackFideId "35093487"]
[WhiteElo "2296"]
[BlackElo "2631"]
[Result "0-1"]
[Round "05"]
[TimeControl "180+2"]
[Date "2023.04.11"]
[WhiteClock "0:00:12"]
[BlackClock "0:00:08"]

1. c4 {[%clk 0:03:00]}  g6 {[%clk 0:03:00]} 2. d4 {[%clk 0:02:59]}  Bg7 {[%clk 0:03:01]} 3. Nc3 {[%clk 0:03:00]}  d6 {[%clk 0:03:01]} 4. e4 {[%clk 0:03:00]}  Nd7 {[%clk 0:03:02]} 5. Be3 {[%clk 0:03:00]}  Ngf6 {[%clk 0:03:01]} 6. f3 {[%clk 0:03:00]}  e5 {[%clk 0:03:01]} 7. d5 {[%clk 0:03:00]}  h5 {[%clk 0:03:01]} 8. Qd2 {[%clk 0:03:00]}  a5 {[%clk 0:02:58]} 9. O-O-O {[%clk 0:02:59]}  Nc5 {[%clk 0:02:59]} 10. Kb1 {[%clk 0:02:59]}  Qe7 {[%clk 0:02:59]} 11. Nge2 {[%clk 0:02:59]}  Bd7 {[%clk 0:02:59]} 12. Nc1 {[%clk 0:02:58]}  b6 {[%clk 0:02:55]} 13. h4 {[%clk 0:02:54]}  O-O-O {[%clk 0:02:54]} 14. Nd3 {[%clk 0:02:50]}  Kb8 {[%clk 0:02:54]} 15. Nxc5 {[%clk 0:02:51]}  dxc5 {[%clk 0:02:55]} 16. d6 {[%clk 0:02:46]}  Qe6 {[%clk 0:02:39]} 17. Bg5 {[%clk 0:02:23]}  Bc6 {[%clk 0:02:18]} 18. Bxf6 {[%clk 0:02:10]}  Bxf6 {[%clk 0:02:09]} 19. dxc7+ {[%clk 0:02:09]}  Kxc7 {[%clk 0:02:09]} 20. Nd5+ {[%clk 0:02:10]}  Kb7 {[%clk 0:02:10]} 21. g3 {[%clk 0:02:07]}  Bg7 {[%clk 0:02:03]} 22. Be2 {[%clk 0:02:07]}  f5 {[%clk 0:02:03]} 23. Qc3 {[%clk 0:02:03]}  a4 {[%clk 0:02:02]} 24. Rd3 {[%clk 0:01:57]}  Bxd5 {[%clk 0:01:46]} 25. Rxd5 {[%clk 0:01:51]}  Rxd5 {[%clk 0:01:25]} 26. cxd5 {[%clk 0:01:52]}  Qd7 {[%clk 0:01:26]} 27. Bd3 {[%clk 0:01:49]}  Rf8 {[%clk 0:01:19]} 28. Qc2 {[%clk 0:01:45]}  f4 {[%clk 0:01:19]} 29. Rg1 {[%clk 0:01:34]}  g5 {[%clk 0:00:53]} 30. gxf4 {[%clk 0:01:23]}  gxh4 {[%clk 0:00:50]} 31. f5 {[%clk 0:01:18]}  Bf6 {[%clk 0:00:41]} 32. Qe2 {[%clk 0:01:17]}  a3 {[%clk 0:00:27]} 33. Bb5 {[%clk 0:01:17]}  Qc7 {[%clk 0:00:21]} 34. Bc6+ {[%clk 0:01:17]}  Kb8 {[%clk 0:00:22]} 35. bxa3 {[%clk 0:01:05]}  h3 {[%clk 0:00:22]} 36. Rh1 {[%clk 0:00:54]}  Rg8 {[%clk 0:00:21]} 37. Rxh3 {[%clk 0:00:49]}  Rg1+ {[%clk 0:00:21]} 38. Kb2 {[%clk 0:00:49]}  Qg7 {[%clk 0:00:19]} 39. Rh2 {[%clk 0:00:27]}  h4 {[%clk 0:00:19]} 40. Qa6 {[%clk 0:00:21]}  Qa7 {[%clk 0:00:18]} 41. Qb5 {[%clk 0:00:20]}  Rg3 {[%clk 0:00:14]} 42. d6 {[%clk 0:00:19]}  Rxf3 {[%clk 0:00:13]} 43. Rd2 {[%clk 0:00:19]}  Qxa3+ {[%clk 0:00:13]} 44. Kb1 {[%clk 0:00:17]}  Qb4+ {[%clk 0:00:09]} 45. Qxb4 {[%clk 0:00:17]}  cxb4 {[%clk 0:00:09]} 46. Rh2 {[%clk 0:00:14]}  h3 {[%clk 0:00:09]} 47. d7 {[%clk 0:00:13]}  Rg3 {[%clk 0:00:08]} 48. Bb5 {[%clk 0:00:12]}  Rg1+ {[%clk 0:00:08]} 49. Kc2 {[%clk 0:00:12]}  Rg2+ {[%clk 0:00:08]} 0-1


[Site "https://www.chess.com"]

[Event "Titled Tuesday Blitz April 11 Late 2023"]
[White "Lobanov, Sergei"]
[Black "Perske, Thore"]
[WhiteFideId "24183750"]
[BlackFideId "12902195"]
[WhiteElo "2489"]
[BlackElo "2336"]
[Result "1-0"]
[Round "05"]
[TimeControl "180+2"]
[Date "2023.04.11"]
[WhiteClock "0:01:18"]
[BlackClock "0:00:46"]

1. d4 {[%clk 0:02:55]}  d5 {[%clk 0:02:59]} 2. c4 {[%clk 0:02:55]}  c6 {[%clk 0:02:59]} 3. Nf3 {[%clk 0:02:55]}  Nf6 {[%clk 0:02:59]} 4. e3 {[%clk 0:02:56]}  Bf5 {[%clk 0:02:59]} 5. Nc3 {[%clk 0:02:56]}  e6 {[%clk 0:02:59]} 6. Nh4 {[%clk 0:02:57]}  Be4 {[%clk 0:02:59]} 7. f3 {[%clk 0:02:56]}  Bg6 {[%clk 0:03:00]} 8. Nxg6 {[%clk 0:02:57]}  hxg6 {[%clk 0:03:01]} 9. Bd2 {[%clk 0:02:56]}  Nbd7 {[%clk 0:03:00]} 10. Qb3 {[%clk 0:02:54]}  Qb6 {[%clk 0:03:00]} 11. O-O-O {[%clk 0:02:47]}  Bd6 {[%clk 0:02:56]} 12. Qc2 {[%clk 0:02:38]}  Qc7 {[%clk 0:02:49]} 13. e4 {[%clk 0:02:36]}  dxe4 {[%clk 0:02:41]} 14. fxe4 {[%clk 0:02:37]}  Bxh2 {[%clk 0:02:41]} 15. Be2 {[%clk 0:02:24]}  O-O-O {[%clk 0:02:39]} 16. e5 {[%clk 0:02:24]}  Nxe5 {[%clk 0:02:00]} 17. dxe5 {[%clk 0:02:20]}  Bxe5 {[%clk 0:01:56]} 18. Rxh8 {[%clk 0:02:12]}  Rxh8 {[%clk 0:01:57]} 19. Kb1 {[%clk 0:02:10]}  Rh2 {[%clk 0:01:54]} 20. Bf3 {[%clk 0:02:08]}  Nd7 {[%clk 0:01:54]} 21. Ne4 {[%clk 0:02:01]}  a6 {[%clk 0:01:30]} 22. Qd3 {[%clk 0:01:29]}  c5 {[%clk 0:00:58]} 23. Ba5 {[%clk 0:01:24]}  Qc6 {[%clk 0:00:46]} 24. Nxc5 {[%clk 0:01:18]} 1-0


[Site "https://www.chess.com"]

[Event "Titled Tuesday Blitz April 11 Late 2023"]
[White "Yanchenko, Roman"]
[Black "Richter, Paul"]
[WhiteFideId "4137329"]
[BlackFideId "2046350"]
[WhiteElo "2491"]
[BlackElo "2171"]
[Result "1-0"]
[Round "05"]
[TimeControl "180+2"]
[Date "2023.04.11"]
[WhiteClock "0:01:45"]
[BlackClock "0:00:11"]

1. d4 {[%clk 0:03:00]}  Nf6 {[%clk 0:02:59]} 2. c4 {[%clk 0:03:00]}  g6 {[%clk 0:02:59]} 3. Nc3 {[%clk 0:03:00]}  Bg7 {[%clk 0:02:59]} 4. Bf4 {[%clk 0:03:00]}  O-O {[%clk 0:03:00]} 5. e3 {[%clk 0:03:01]}  d6 {[%clk 0:03:00]} 6. Nf3 {[%clk 0:03:01]}  Nfd7 {[%clk 0:02:59]} 7. Be2 {[%clk 0:03:01]}  e5 {[%clk 0:02:57]} 8. Bg5 {[%clk 0:03:01]}  f6 {[%clk 0:02:56]} 9. Bh4 {[%clk 0:03:02]}  g5 {[%clk 0:02:56]} 10. Bg3 {[%clk 0:03:02]}  f5 {[%clk 0:02:50]} 11. dxe5 {[%clk 0:03:02]}  dxe5 {[%clk 0:02:50]} 12. Qd5+ {[%clk 0:02:54]}  Kh8 {[%clk 0:02:49]} 13. Nxe5 {[%clk 0:02:49]}  f4 {[%clk 0:01:55]} 14. Nf7+ {[%clk 0:02:37]}  Rxf7 {[%clk 0:01:53]} 15. Qxf7 {[%clk 0:02:38]}  fxg3 {[%clk 0:01:53]} 16. hxg3 {[%clk 0:02:32]}  Ne5 {[%clk 0:01:27]} 17. Qh5 {[%clk 0:02:25]}  h6 {[%clk 0:01:27]} 18. f4 {[%clk 0:02:15]}  Nd3+ {[%clk 0:01:14]} 19. Bxd3 {[%clk 0:02:15]}  Qxd3 {[%clk 0:01:15]} 20. Qe8+ {[%clk 0:02:15]}  Kh7 {[%clk 0:01:14]} 21. Qxc8 {[%clk 0:02:13]}  Bxc3+ {[%clk 0:00:42]} 22. bxc3 {[%clk 0:02:12]}  Qxc3+ {[%clk 0:00:43]} 23. Kf2 {[%clk 0:02:12]}  Qd2+ {[%clk 0:00:33]} 24. Kf3 {[%clk 0:02:11]}  Nd7 {[%clk 0:00:27]} 25. Qxa8 {[%clk 0:01:51]}  g4+ {[%clk 0:00:17]} 26. Kxg4 {[%clk 0:01:51]}  Qe2+ {[%clk 0:00:17]} 27. Kf5 {[%clk 0:01:46]}  Qd3+ {[%clk 0:00:16]} 28. e4 {[%clk 0:01:46]}  Qxg3 {[%clk 0:00:13]} 29. Rxh6+ {[%clk 0:01:45]}  Kxh6 {[%clk 0:00:11]} 30. Qh8# {[%clk 0:01:45]} 1-0


[Site "https://www.chess.com"]

[Event "Titled Tuesday Blitz April 11 Late 2023"]
[White "Karamsetty, Jeevan"]
[Black "De La Colina, Nicolas"]
[WhiteFideId "2025337"]
[BlackFideId "30946921"]
[WhiteElo "2111"]
[BlackElo "2046"]
[Result "0-1"]
[Round "05"]
[TimeControl "180+2"]
[Date "2023.04.11"]
[WhiteClock "0:00:06"]
[BlackClock "0:00:09"]

1. e4 {[%clk 0:03:00]}  c5 {[%clk 0:02:59]} 2. Nc3 {[%clk 0:03:00]}  Nc6 {[%clk 0:02:59]} 3. g3 {[%clk 0:02:55]}  g6 {[%clk 0:02:59]} 4. Bg2 {[%clk 0:02:55]}  Bg7 {[%clk 0:03:00]} 5. d3 {[%clk 0:02:56]}  d6 {[%clk 0:03:01]} 6. Be3 {[%clk 0:02:54]}  e5 {[%clk 0:03:01]} 7. Qd2 {[%clk 0:02:52]}  Nd4 {[%clk 0:02:44]} 8. f4 {[%clk 0:02:43]}  Ne7 {[%clk 0:02:32]} 9. Nf3 {[%clk 0:02:32]}  Bg4 {[%clk 0:02:08]} 10. O-O {[%clk 0:02:29]}  h6 {[%clk 0:02:05]} 11. fxe5 {[%clk 0:02:20]}  dxe5 {[%clk 0:02:04]} 12. Nh4 {[%clk 0:02:14]}  Qd7 {[%clk 0:01:59]} 13. Rf2 {[%clk 0:01:54]}  Be6 {[%clk 0:01:40]} 14. b3 {[%clk 0:01:42]}  O-O-O {[%clk 0:01:30]} 15. a4 {[%clk 0:01:40]}  f5 {[%clk 0:01:14]} 16. exf5 {[%clk 0:01:31]}  gxf5 {[%clk 0:01:15]} 17. Nb5 {[%clk 0:01:20]}  b6 {[%clk 0:01:05]} 18. Bxd4 {[%clk 0:01:15]}  cxd4 {[%clk 0:01:03]} 19. Qb4 {[%clk 0:01:02]}  Bd5 {[%clk 0:00:17]} 20. a5 {[%clk 0:00:46]}  Bxg2 {[%clk 0:00:17]} 21. Kxg2 {[%clk 0:00:21]}  Nc6 {[%clk 0:00:17]} 22. Qc4 {[%clk 0:00:16]}  Qd5+ {[%clk 0:00:17]} 23. Kg1 {[%clk 0:00:13]}  Qxc4 {[%clk 0:00:18]} 24. bxc4 {[%clk 0:00:13]}  Nxa5 {[%clk 0:00:15]} 25. Nxf5 {[%clk 0:00:13]}  Bf8 {[%clk 0:00:15]} 26. Re2 {[%clk 0:00:10]}  a6 {[%clk 0:00:13]} 27. Na3 {[%clk 0:00:08]}  Re8 {[%clk 0:00:13]} 28. Nb1 {[%clk 0:00:08]}  Bb4 {[%clk 0:00:13]} 29. Nd2 {[%clk 0:00:06]}  Bxd2 {[%clk 0:00:13]} 30. Rxd2 {[%clk 0:00:07]}  e4 {[%clk 0:00:14]} 31. Nxd4 {[%clk 0:00:07]}  exd3 {[%clk 0:00:13]} 32. cxd3 {[%clk 0:00:08]}  Re3 {[%clk 0:00:10]} 33. Nf5 {[%clk 0:00:07]}  Rf3 {[%clk 0:00:10]} 34. Rf1 {[%clk 0:00:07]}  Rxf1+ {[%clk 0:00:09]} 35. Kxf1 {[%clk 0:00:08]}  Rf8 {[%clk 0:00:08]} 36. Rf2 {[%clk 0:00:08]}  Rd8 {[%clk 0:00:09]} 37. Rf3 {[%clk 0:00:08]}  Nc6 {[%clk 0:00:08]} 38. Nxh6 {[%clk 0:00:07]}  Ne5 {[%clk 0:00:08]} 39. Rf6 {[%clk 0:00:05]}  Kc7 {[%clk 0:00:08]} 40. Nf7 {[%clk 0:00:04]}  Rf8 {[%clk 0:00:07]} 41. Nxe5 {[%clk 0:00:02]}  Rxf6+ {[%clk 0:00:08]} 42. Ke2 {[%clk 0:00:03]}  a5 {[%clk 0:00:09]} 43. Kd2 {[%clk 0:00:03]}  Rf2+ {[%clk 0:00:09]} 44. Kc3 {[%clk 0:00:03]}  Rxh2 {[%clk 0:00:10]} 45. g4 {[%clk 0:00:02]}  Re2 {[%clk 0:00:09]} 46. d4 {[%clk 0:00:03]}  Rg2 {[%clk 0:00:09]} 47. c5 {[%clk 0:00:02]}  bxc5 {[%clk 0:00:06]} 48. dxc5 {[%clk 0:00:03]}  Re2 {[%clk 0:00:06]} 49. Kd4 {[%clk 0:00:03]}  a4 {[%clk 0:00:07]} 50. Nc4 {[%clk 0:00:03]}  Rg2 {[%clk 0:00:06]} 51. Kc3 {[%clk 0:00:03]}  Rxg4 {[%clk 0:00:07]} 52. Kb4 {[%clk 0:00:04]}  Kc6 {[%clk 0:00:05]} 53. Kc3 {[%clk 0:00:02]}  Kxc5 {[%clk 0:00:05]} 54. Nb2 {[%clk 0:00:02]}  Rg3+ {[%clk 0:00:05]} 55. Kc2 {[%clk 0:00:02]}  Kb4 {[%clk 0:00:04]} 56. Kb1 {[%clk 0:00:02]}  Kb3 {[%clk 0:00:04]} 57. Kc1 {[%clk 0:00:02]}  Rg1+ {[%clk 0:00:05]} 58. Nd1 {[%clk 0:00:02]}  Rxd1+ {[%clk 0:00:05]} 59. Kxd1 {[%clk 0:00:03]}  Kb2 {[%clk 0:00:05]} 60. Kd2 {[%clk 0:00:03]}  a3 {[%clk 0:00:06]} 61. Kd3 {[%clk 0:00:04]}  a2 {[%clk 0:00:07]} 62. Kc4 {[%clk 0:00:05]}  a1=Q {[%clk 0:00:08]} 63. Kd4 {[%clk 0:00:06]}  Qa3 {[%clk 0:00:09]} 0-1


[Site "https://www.chess.com"]